bitfinex/quotes_ETHUSD_20250331
["timestamp","ask_amount","ask_price","bid_price","bid_amount"]
[1743404742636,10.8492542,1813.8,1813.6,37.412]
[1743404742835,10.8492542,1813.8,1813.6,5.588]
[1743404743536,5.3358742,1813.8,1813.6,5.588]
[1743404743738,0.8268,1813.8,1813.6,11.10179]
[1743404743938,0.8268,1813.8,1813.6,11.10174]
[1743404744452,0.8268,1813.8,1813.6,5.588]
[1743404744981,11.85356,1813.8,1813.6,5.588]
[1743404745161,12.797546,1813.8,1813.6,5.588]
[1743404745361,5.51359,1813.7,1813.6,5.588]
[1743404745572,6.27959,1813.7,1813.6,5.588]
[1743404746158,6.2805,1813.4,1813.2,14.5]
[1743404746363,0.766,1813.4,1813.3,5.575]
[1743404747604,5.51511,1813.2,1813.1,31.822]
[1743404747887,10.7901842,1813.2,1813.1,37.393]
[1743404748963,5.2750742,1813.2,1813.1,37.393]
[1743404749275,10.7901842,1813.2,1813.1,37.393]
[1743404750369,5.2750742,1813.2,1813.1,37.393]
[1743404751083,0.766,1813.2,1813.1,37.393]
[1743404751287,4.5090742,1813.4,1813.1,42.90831]
[1743404751451,10.0235842,1813.4,1813.1,42.90826]
[1743404751785,10.0235842,1813.4,1813.1,42.90825]
[1743404751949,6.28023,1813.5,1813.2,14.5]
[1743404752149,8.2750742,1813.5,1813.2,20.01484]
[1743404752384,7.5090742,1813.5,1813.3,5.51478]
[1743404752749,5.2750742,1813.7,1813.4,11.02889]
[1743404752950,5.2750742,1813.7,1813.5,20.074]
[1743404753874,5.2750742,1813.7,1813.5,5.574]
[1743404754183,10.7886942,1813.7,1813.5,5.574]
[1743404754890,10.7886642,1813.7,1813.5,5.574]
[1743404755595,5.51389,1813.6,1813.5,5.574]
[1743404757293,5.5142,1813.5,1813.2,5.51509]
[1743404757459,4.5090742,1813.4,1813.3,5.569]
[1743404758268,4.5090742,1813.6,1813.3,11.0838]
[1743404758579,10.0229842,1813.6,1813.3,16.59849]
[1743404758780,10.0229642,1813.6,1813.3,11.08369]
[1743404758976,4.5090742,1813.6,1813.3,16.59834]
[1743404759163,10.0230142,1813.6,1813.3,11.08365]
[1743404759363,5.51422,1813.5,1813.3,5.569]
[1743404759771,5.51422,1813.5,1813.4,5.563]
[1743404760069,10.0230142,1813.6,1813.4,5.563]
[1743404760276,4.5090742,1813.6,1813.4,11.07748]
[1743404760579,5.51442,1813.5,1813.1,37.33739]
[1743404760877,4.5090742,1813.2,1813.1,31.822]
[1743404761080,10.0241842,1813.2,1813.1,37.383]
[1743404761281,6.28291,1813.4,1813.1,42.89831]
[1743404761488,4.5090742,1813.3,1813.1,48.41359]
[1743404761806,4.5090742,1813.3,1813.2,5.51511]
[1743404762090,4.5090742,1813.3,1813.1,11.07628]
[1743404762393,4.5090742,1813.3,1813.2,5.51511]
[1743404762595,10.0233842,1813.5,1813.2,5.51511]
[1743404762798,4.5090742,1813.5,1813.2,5.51495]
[1743404762968,10.0232742,1813.5,1813.2,11.02995]
[1743404763176,10.0232742,1813.5,1813.2,5.51495]
[1743404763501,15.5376542,1813.5,1813.1,16.59158]
[1743404763790,14.79633,1813.6,1813.3,5.51466]
[1743404764003,4.5090742,1813.5,1813.2,5.563]
[1743404764164,4.5090742,1813.5,1813.3,5.5148]
[1743404764364,4.5090742,1813.5,1813.3,6.3193]
[1743404764578,10.0233042,1813.5,1813.2,11.07805]
[1743404764774,4.5090742,1813.3,1813.2,5.563]
[1743404765066,6.28358,1813.2,1813.1,5.576]
[1743404765561,5.51541,1813.1,1812.5,0.8046]
[1743404765781,4.5090742,1812.9,1812.7,5.51656]
[1743404767079,4.5090742,1812.9,1812.8,5.51632]
[1743404767264,4.5090742,1813.1,1812.9,5.51586]
[1743404767574,4.5090742,1813.1,1813.0,5.574]
[1743404768394,10.0244842,1813.1,1813.0,5.574]
[1743404768984,4.5090742,1813.1,1813.0,5.574]
[1743404771508,10.0244842,1813.1,1813.0,5.574]
[1743404771705,4.5090742,1813.1,1813.0,5.574]
[1743404772374,5.2773742,1813.4,1813.1,5.51519]
[1743404772569,0.7683,1813.8,1813.2,0.8046]
[1743404772805,6.28169,1813.8,1813.5,11.02804]
[1743404772982,10.1223042,1813.9,1813.6,5.559]
[1743404773172,18.18082862,1813.9,1813.6,5.559]
[1743404773371,4.5090742,1813.7,1813.6,5.559]
[1743404774481,10.7956642,1813.7,1813.6,5.559]
[1743404776612,4.5090742,1813.7,1813.6,5.559]
[1743404777097,4.5090742,1813.7,1813.6,11.07289]
[1743404777409,4.5090742,1813.7,1813.6,5.559]
[1743404777611,4.6090742,1813.9,1813.6,11.07289]
[1743404777782,4.6090742,1813.9,1813.7,5.5135]
[1743404778616,10.1220642,1813.9,1813.6,11.07289]
[1743404778913,4.6090742,1813.9,1813.7,5.51351]
[1743404779114,4.6090742,1813.9,1813.6,16.58663]
[1743404779518,4.6090742,1813.9,1813.7,5.51355]
[1743404781091,4.6090742,1813.9,1813.6,11.07274]
[1743404781275,4.6090742,1813.9,1813.6,16.58653]
[1743404781480,10.1220842,1813.9,1813.6,11.07274]
[1743404781714,4.5090742,1813.7,1813.6,11.07274]
[1743404782522,4.6090742,1813.9,1813.6,16.58653]
[1743404782697,4.6090742,1813.9,1813.6,11.07274]
[1743404783022,5.2820742,1813.7,1813.4,5.5144]
[1743404783189,6.28672,1813.7,1813.5,5.537]
[1743404783524,4.5090742,1813.6,1813.5,5.537]
[1743404784485,4.5090742,1813.6,1813.5,11.05119]
[1743404784790,4.5090742,1813.6,1813.5,5.537]
[1743404784991,4.5090742,1813.6,1813.5,11.05119]
[1743404785634,4.5090742,1813.6,1813.5,5.537]
[1743404785988,11.89925,1813.9,1813.6,5.51375]
[1743404786188,4.5090742,1813.7,1813.6,5.51375]
[1743404786626,10.0228242,1813.7,1813.4,5.51436]
[1743404786924,10.0233542,1813.5,1813.2,37.34605]
[1743404787224,4.5090742,1813.3,1813.2,37.34605]
[1743404788025,4.5090742,1813.5,1813.3,5.51471]
[1743404789821,4.5090742,1813.5,1813.4,5.5145]
[1743404790645,4.5090742,1813.5,1813.3,5.51467]
[1743404790839,4.5090742,1813.5,1813.3,11.02937]
[1743404791204,4.5090742,1813.5,1813.4,5.5145]
[1743404791627,4.5090742,1813.5,1813.3,5.51467]
[1743404791826,4.5090742,1813.5,1813.4,5.5145]
[1743404792434,4.5090742,1813.5,1813.3,11.02932]
[1743404792598,4.5090742,1813.5,1813.3,5.51466]
[1743404793844,4.5090742,1813.5,1813.4,5.5145]
[1743404794142,7.5090742,1813.7,1813.6,5.51389]
[1743404794439,7.5090742,1813.7,1813.6,5.527]
[1743404795144,13.0226642,1813.7,1813.6,5.527]
[1743404795638,7.5090742,1813.7,1813.6,5.527]
[1743404796442,5.51419,1813.6,1813.2,42.86085]
[1743404796739,4.5090742,1813.4,1813.3,11.03578]
[1743404797346,4.5090742,1813.4,1813.3,5.521]
[1743404797711,4.5090742,1813.4,1813.3,11.0358]
[1743404799347,5.51522,1813.2,1813.0,31.825]
[1743404799551,10.8150842,1813.1,1813.0,31.825]
[1743404799716,13.8150842,1813.1,1813.0,37.362]
[1743404799918,18.3241584,1813.1,1813.0,5.537]
[1743404800348,0.7906,1812.7,1812.3,31.825]
[1743404800564,4.5090742,1812.5,1812.4,5.555]
[1743404802459,0.7906,1812.9,1812.4,11.07231]
[1743404802627,4.5090742,1812.9,1812.7,5.51652]
[1743404802829,4.5090742,1812.9,1812.8,5.553]
[1743404803345,4.5090742,1813.1,1812.9,5.51577]
[1743404803751,11.78934,1813.5,1813.1,5.51539]
[1743404804052,4.5090742,1813.3,1813.2,5.559]
[1743404806139,4.5090742,1813.3,1813.2,5.561]
[1743404806343,4.5090742,1813.3,1813.2,5.56]
[1743404806547,5.51565,1813.1,1812.7,6.29098]
[1743404806754,4.5090742,1812.9,1812.8,5.564]
[1743404808273,4.5090742,1812.9,1812.8,5.56]
[1743404808566,4.5090742,1812.9,1812.6,5.51678]
[1743404808756,4.5090742,1812.7,1812.5,6.29163]
[1743404808959,4.5090742,1812.7,1812.6,5.563]
[1743404809660,5.2697742,1812.7,1812.6,5.563]
[1743404809976,10.7865242,1812.7,1812.6,5.563]
[1743404810186,5.2697742,1812.7,1812.6,5.563]
[1743404810477,10.7864042,1812.7,1812.3,38.11711]
[1743404810634,4.5090742,1812.5,1812.4,5.562]
[1743404810835,4.5090742,1812.5,1812.4,5.56]
[1743404811063,10.0264342,1812.5,1812.4,5.56]
[1743404811544,6.27824,1812.4,1812.3,31.825]
[1743404811876,5.51886,1812.0,1811.6,38.12732]
[1743404812078,4.5090742,1811.8,1811.7,5.563]
[1743404812733,0.7607,1812.0,1811.7,5.563]
[1743404812931,4.5090742,1811.8,1811.7,11.08267]
[1743404813216,4.5090742,1811.9,1811.7,11.08267]
[1743404813476,4.5090742,1811.8,1811.7,5.563]
[1743404813676,11.42337835,1812.0,1811.7,5.563]
[1743404814335,16.94233835,1812.0,1811.7,5.563]
[1743404814539,11.42337835,1812.0,1811.7,5.563]
[1743404814738,11.42337835,1812.0,1811.7,11.08267]
[1743404815695,5.90459835,1812.0,1811.7,11.08257]
[1743404815975,16.94249835,1812.0,1811.8,14.5]
[1743404816270,5.51908,1811.9,1811.6,37.35296]
[1743404816466,5.51908,1811.9,1811.7,5.55]
[1743404816677,7.21333683,1811.9,1811.8,14.5]
[1743404816836,12.35723518,1811.9,1811.8,14.5]
[1743404817264,10.66297835,1811.9,1811.7,5.55]
[1743404819280,5.14389835,1811.9,1811.7,5.55]
[1743404819698,5.14389835,1811.9,1811.8,14.5]
[1743404820166,10.66295835,1811.9,1811.8,14.5]
[1743404820568,10.66295835,1811.9,1811.8,5.534]
[1743404821079,12.35721319,1811.9,1811.8,5.534]
[1743404821501,16.71221835,1812.2,1811.8,11.05315]
[1743404822296,16.71221835,1812.2,1811.9,14.5]
[1743404822604,16.71221835,1812.2,1812.0,5.51875]
[1743404822605,5.14389835,1812.2,1812.0,5.51875]
[1743404822812,5.14389835,1812.5,1812.2,5.51804]
[1743404822998,3.0,1812.6,1812.3,11.05473]
[1743404823370,8.51694,1812.6,1812.3,5.537]
[1743404824104,5.97559835,1812.9,1812.5,5.517]
[1743404824316,5.14389835,1812.9,1812.6,6.33913]
[1743404824524,10.66001835,1812.9,1812.7,5.537]
[1743404824812,5.14389835,1812.7,1812.4,14.5]
[1743404825108,10.66053835,1812.7,1812.5,5.546]
[1743404825744,6.34895,1812.5,1811.9,0.8223]
[1743404825881,5.51862,1812.1,1812.0,5.56]
[1743404826087,5.51862,1812.1,1812.0,5.562]
[1743404826298,11.49377835,1812.2,1812.0,5.562]
[1743404826499,5.51845,1812.1,1812.0,5.562]
[1743404828115,7.97676319,1812.2,1812.0,5.562]
[1743404828312,5.14389835,1812.2,1812.0,5.562]
[1743404828818,10.66207835,1812.2,1812.0,5.562]
[1743404830225,3.0,1812.3,1812.0,11.08076]
[1743404830375,3.0,1812.3,1812.0,16.59939]
[1743404830703,3.0,1812.3,1812.0,16.59927]
[1743404830901,3.0,1812.3,1812.0,11.08075]
[1743404831822,3.0,1812.3,1811.9,0.8223]
[1743404832016,8.518,1812.3,1812.0,5.551]
[1743404832182,3.0,1812.3,1812.0,5.551]
[1743404832580,5.51815,1812.2,1812.0,5.551]
[1743404832800,8.51807,1812.3,1812.0,5.551]
[1743404832801,14.0361,1812.3,1812.0,5.551]
[1743404832997,10.51919983,1812.3,1812.0,5.551]
[1743404833315,3.0,1812.4,1812.1,0.7963]
[1743404833481,11.43592835,1812.7,1812.3,5.51774]
[1743404833687,5.51639,1812.8,1812.5,0.7963]
[1743404833881,5.51646,1812.8,1812.5,0.7963]
[1743404834087,11.43537835,1812.9,1812.5,6.31348]
[1743404834315,5.51642,1812.8,1812.5,6.31348]
[1743404834538,11.43537835,1812.9,1812.5,6.3134]
[1743404834713,10.65997835,1812.9,1812.5,6.3134]
[1743404835031,10.65997835,1812.9,1812.6,5.51688]
[1743404835384,10.65997835,1812.9,1812.5,6.3134]
[1743404835578,5.51641,1812.8,1812.5,6.3134]
[1743404835782,5.51641,1812.8,1812.5,0.7963]
[1743404836423,5.51641,1812.8,1812.4,20.0174]
[1743404836631,5.14389835,1812.5,1812.1,11.83302]
[1743404836789,10.66123835,1812.5,1812.2,5.558]
[1743404837497,16.17868835,1812.5,1812.2,5.558]
[1743404837695,11.03541,1812.4,1812.2,5.558]
[1743404837899,3.0,1812.6,1812.2,5.558]
[1743404838101,3.0,1812.6,1812.3,5.5177]
[1743404838336,3.0,1812.6,1812.3,11.03547]
[1743404838514,3.0,1812.6,1812.3,5.5177]
[1743404838715,8.51713,1812.6,1812.2,16.59235866]
[1743404838969,8.51713,1812.6,1812.3,5.51784]
[1743404839127,14.03423,1812.6,1812.2,11.07420866]
[1743404839656,5.51785,1812.3,1811.9,6.31532]
[1743404839819,5.51815,1812.2,1812.0,5.551]
[1743404840011,16.17988835,1812.3,1812.0,5.551]
[1743404840647,10.66174835,1812.3,1812.0,5.551]
[1743404841548,5.51824,1812.2,1812.0,5.551]
[1743404842032,6.621849,1812.2,1812.1,5.543]
[1743404842355,5.51733,1812.5,1812.2,5.51811]
[1743404842648,3.0,1812.6,1812.3,5.51758]
[1743404842816,8.51713,1812.6,1812.2,5.5181]
[1743404843021,5.51725,1812.5,1812.2,5.5181]
[1743404843259,8.51713,1812.6,1812.3,14.5]
[1743404843454,5.51726,1812.5,1812.1,17.37608]
[1743404843660,5.51769,1812.4,1812.1,6.3393]
[1743404843831,6.29309,1812.4,1812.1,11.06136]
[1743404844155,5.51794,1812.3,1812.1,5.543]
[1743404844346,11.03597,1812.3,1812.2,5.542]
[1743404844654,6.699077,1812.3,1812.2,5.542]
[1743404845523,1.181137,1812.3,1812.2,5.542]
[1743404845753,9.51000119,1812.6,1812.2,5.542]
[1743404845952,1.36610284,1812.6,1812.3,6.31389]
[1743404846256,6.29206,1812.7,1812.3,6.31389]
[1743404846553,11.80888,1812.7,1812.3,6.31389]
[1743404846740,5.51698,1812.6,1812.3,0.7963]
[1743404847051,5.51737,1812.5,1812.2,5.542]
[1743404847252,5.51737,1812.5,1812.2,11.06014]
[1743404847548,5.51772,1812.4,1812.1,0.7963]
[1743404847719,6.29312,1812.4,1812.3,5.539]
[1743404848048,11.43701835,1812.4,1812.3,5.539]
[1743404848244,0.7754,1812.4,1812.3,5.539]
[1743404848440,7.13509684,1812.5,1812.3,5.539]
[1743404848644,4.61782684,1812.5,1812.3,5.539]
[1743404848822,4.61782684,1812.5,1812.3,11.0568]
[1743404848823,3.0,1812.5,1812.3,11.0568]
[1743404849427,3.0,1812.5,1812.3,5.539]
[1743404849621,8.51724,1812.5,1812.3,5.539]
[1743404849826,5.51754,1812.4,1812.3,5.539]
[1743404850766,13.02924104,1812.5,1812.3,5.539]
[1743404850973,14.88386214,1812.5,1812.3,5.539]
[1743404851170,11.88400214,1812.5,1812.3,5.539]
[1743404851539,5.5176,1812.4,1812.0,38.15069]
[1743404851876,10.02986104,1812.3,1812.1,5.543]
[1743404852235,15.54787104,1812.3,1812.1,5.543]
[1743404852432,5.51815,1812.2,1812.1,5.543]
[1743404852636,11.03646,1812.2,1811.8,58.16968]
[1743404852870,5.51815,1812.2,1812.1,5.543]
[1743404854258,11.58469814,1812.3,1812.1,5.543]
[1743404854456,5.30570104,1812.5,1812.2,5.51789]
[1743404854787,4.51200104,1812.5,1812.3,5.51774]
[1743404855090,4.51200104,1812.5,1812.3,5.51773]
[1743404855891,4.51200104,1812.5,1812.2,5.51809]
[1743404856263,10.02936104,1812.5,1812.3,5.539]
[1743404856588,11.33229714,1812.5,1812.3,5.539]
[1743404856760,5.51844,1812.2,1811.9,0.784]
[1743404856958,10.03044104,1812.2,1812.0,5.545]
[1743404857155,10.03034104,1812.2,1812.0,5.545]
[1743404857361,4.51200104,1812.2,1812.0,5.545]
[1743404857561,10.03031104,1812.2,1812.0,5.545]
[1743404857963,4.51200104,1812.2,1812.0,16.5824]
[1743404858301,4.51200104,1812.2,1812.0,11.06367]
[1743404858501,4.51200104,1812.2,1812.0,16.58234]
[1743404858671,4.51200104,1812.2,1812.0,11.06367]
[1743404859189,4.51200104,1812.2,1812.0,5.545]
[1743404859190,10.03017104,1812.2,1812.0,5.545]
[1743404859505,4.51200104,1812.2,1812.0,5.545]
[1743404859661,10.03015104,1812.2,1812.0,5.545]
[1743404859862,5.51889,1812.0,1811.9,5.544]
[1743404860397,10.03089104,1812.0,1811.9,5.544]
[1743404860600,4.51200104,1812.0,1811.9,5.544]
[1743404860780,6.31219,1812.1,1811.9,5.544]
[1743404861395,0.7937,1812.1,1811.9,5.544]
[1743404861581,6.31232,1812.1,1811.9,5.544]
[1743404862369,1.73455161,1812.1,1811.9,5.544]
[1743404862565,7.25305161,1812.1,1811.9,5.544]
[1743404863512,0.8036,1812.0,1811.8,31.847]
[1743404863719,0.8036,1812.0,1811.4,0.7852]
[1743404863720,5.51977,1811.7,1811.4,0.7852]
[1743404863913,5.51977,1811.7,1811.3,11.04161]
[1743404863914,10.58374804,1811.7,1811.3,5.52077]
[1743404864075,10.58374804,1811.7,1811.4,11.06558]
[1743404864479,5.06397804,1811.7,1811.4,11.06544]
[1743404864782,5.06397804,1811.7,1811.4,16.58592]
[1743404865410,10.58371804,1811.7,1811.4,11.06544]
[1743404865615,11.38731804,1811.7,1811.4,5.545]
[1743404865911,5.52008,1811.6,1811.4,5.545]
[1743404866111,5.52008,1811.6,1811.1,31.949]
[1743404866112,5.52099,1811.3,1811.1,31.949]
[1743404866414,5.52079,1811.4,1811.2,5.539]
[1743404866829,10.83649104,1811.3,1811.1,31.949]
[1743404867116,6.6048491,1811.2,1811.1,31.949]
[1743404867316,14.53389934,1811.2,1811.1,0.1]
[1743404868453,15.33749934,1811.2,1811.1,0.1]
[1743404868832,15.33749934,1811.2,1810.4,31.854]
[1743404868833,3.0,1811.1,1810.4,31.854]
[1743404869145,10.03533104,1810.5,1810.4,37.404]
[1743404869353,6.14820914,1810.5,1810.1,0.1]
[1743404869507,4.51200104,1810.3,1810.2,5.565]
[1743404869708,5.52375,1810.4,1810.2,5.565]
[1743404870132,12.31257782,1810.5,1810.2,5.565]
[1743404870310,17.83614782,1810.5,1810.2,5.565]
[1743404870749,12.83114478,1810.4,1810.2,5.565]
[1743404870949,12.83114478,1810.4,1810.1,0.1]
[1743404870950,11.48052972,1810.3,1810.1,0.1]
[1743404871132,5.52425,1810.2,1810.1,0.1]
[1743404871653,8.52425,1810.2,1810.1,0.1]
[1743404877159,8.52425,1810.2,1810.1,14.6]
[1743404877877,8.52425,1810.2,1810.1,0.1]
[1743404878179,10.44436797,1810.2,1810.1,0.1]
[1743404878474,16.72642972,1810.5,1810.1,5.62445]
[1743404878690,5.5238,1810.4,1810.1,5.62445]
[1743404878978,5.5238,1810.4,1810.1,5.62454]
[1743404880251,10.67637972,1810.5,1810.1,5.62441]
[1743404880448,9.75995255,1810.6,1810.1,0.1]
[1743404880449,3.8206,1810.6,1810.1,0.1]
[1743404880651,5.52406,1810.3,1810.1,0.1]
[1743404880953,5.52425,1810.2,1810.1,0.1]
[1743404881148,11.04751,1810.4,1810.1,0.1]
[1743404881481,11.04752,1810.4,1810.1,0.1]
[1743404881648,5.90546,1810.5,1810.2,6.33408]
[1743404881980,6.34302,1810.8,1810.2,0.81]
[1743404882157,5.52248,1810.8,1810.4,5.52355]
[1743404882359,10.67589972,1810.7,1810.5,5.585]
[1743404882554,5.52303,1810.6,1810.5,5.585]
[1743404882944,11.49643972,1810.7,1810.5,5.585]
[1743404883355,13.19833169,1810.7,1810.5,5.585]
[1743404883569,5.52303,1810.6,1810.5,5.585]
[1743404884597,8.52303,1810.6,1810.5,5.585]
[1743404885594,3.0,1810.6,1810.5,5.585]
[1743404885775,5.52285,1810.7,1810.5,5.585]
[1743404886099,12.96560197,1810.7,1810.5,5.585]
[1743404886484,12.96558197,1810.7,1810.5,5.585]
[1743404887001,5.52303,1810.6,1810.2,5.52419]
[1743404887304,5.52346,1810.5,1810.3,5.583]
[1743404887661,10.67613972,1810.6,1810.3,5.583]
[1743404887862,11.93573689,1810.6,1810.3,11.10694]
[1743404888163,6.78274717,1810.6,1810.3,16.63079]
[1743404888365,11.04559,1810.7,1810.3,16.63079]
[1743404888574,12.39272,1810.9,1810.5,6.33317]
[1743404888800,6.34272,1810.9,1810.5,11.85637]
[1743404889001,5.52243,1810.8,1810.5,6.33317]
[1743404889514,6.34272,1810.9,1810.5,11.85636]
[1743404889818,5.52272,1810.7,1810.6,5.586]
[1743404890106,10.67570972,1810.7,1810.6,5.586]
[1743404891005,5.52385,1810.4,1810.3,5.582]
[1743404893105,5.52364,1810.4,1810.3,5.575]
[1743404895299,5.52425,1810.2,1810.1,0.1]
[1743404895478,6.629083,1810.2,1810.1,5.671]
[1743404895679,11.15234527,1810.2,1810.1,0.1]
[1743404896016,11.15234527,1810.2,1810.1,5.669]
[1743404896222,14.15234527,1810.2,1810.1,5.669]
[1743404896519,19.48380754,1810.2,1810.1,5.669]
[1743404896815,19.48380754,1810.2,1810.1,0.1]
[1743404897221,25.53380754,1810.2,1810.1,0.1]
[1743404897601,25.957941,1810.2,1810.1,0.1]
[1743404897799,22.06708211,1810.2,1810.1,0.1]
[1743404901035,22.06708211,1810.2,1810.1,5.679]
[1743404901036,16.72991565,1810.2,1810.1,5.679]
[1743404901912,13.67991565,1810.2,1810.1,5.679]
[1743404902810,13.67991565,1810.2,1810.1,0.1]
[1743404905535,14.48811565,1810.2,1810.1,0.1]
[1743404908621,13.67991565,1810.2,1810.1,0.1]
[1743404908944,16.75772222,1810.2,1810.1,0.1]
[1743404909948,17.58292222,1810.2,1810.1,0.1]
[1743404910751,16.75772222,1810.2,1810.1,0.1]
[1743404911946,17.86704746,1810.2,1810.1,1e-05]
[1743404912344,5.52669,1809.4,1809.3,0.7656]
[1743404912556,10.68235565,1809.4,1809.3,6.3416]
[1743404912711,12.30324321,1809.4,1809.3,6.3416]
[1743404913215,12.30324321,1809.4,1809.3,6.3386]
[1743404914259,12.30324321,1809.4,1809.3,5.573]
[1743404915827,6.77655321,1809.4,1809.3,5.573]
[1743404916025,5.52652,1809.5,1809.3,5.573]
[1743404917559,11.05307,1809.5,1809.3,5.573]
[1743404917746,4.52746136,1809.4,1809.3,5.573]
[1743404919168,10.05415136,1809.4,1809.3,5.573]
[1743404919793,5.5273,1809.2,1809.1,0.8908]
[1743404920070,11.16020436,1809.2,1809.1,5.646]
[1743404920273,11.16020436,1809.2,1809.1,0.1]
[1743404923480,17.21020436,1809.2,1809.1,0.1]
[1743404923673,21.00800436,1809.2,1809.1,0.1]
[1743404925274,21.42206304,1809.2,1809.1,0.1]
[1743404933623,16.09680168,1809.2,1809.1,0.1]
[1743404933784,20.62426304,1809.2,1809.1,0.1]
[1743404936902,20.21020436,1809.2,1809.1,0.1]
[1743404940007,14.16020436,1809.2,1809.1,0.1]
[1743404941002,14.16020436,1809.2,1809.1,0.8854]
[1743404941483,14.16020436,1809.2,1809.1,0.1]
[1743404943181,14.56694824,1809.2,1809.1,0.1]
[1743404943815,15.32984824,1809.2,1809.1,0.1]
[1743404946021,21.37984824,1809.2,1809.1,0.1]
[1743404947529,5.52803,1809.0,1808.5,0.7854]
[1743404947836,8.52975,1808.4,1808.1,0.1]
[1743404948132,13.05782136,1808.2,1808.1,0.1]
[1743404948801,13.46730734,1808.2,1808.1,0.1]
[1743404949641,13.46730734,1808.2,1807.5,0.7854]
[1743404949642,5.53219,1807.6,1807.5,0.7854]
[1743404949824,13.05965136,1807.6,1807.5,0.7854]
[1743404949991,5.53298,1807.4,1807.3,0.7854]
[1743404950191,15.59344136,1807.4,1807.3,0.7854]
[1743404950486,5.53342,1807.2,1807.1,0.8854]
[1743404950798,14.16753536,1807.2,1807.1,6.3984]
[1743404951189,20.21753536,1807.2,1807.1,0.1]
[1743404951786,20.64312328,1807.2,1807.1,0.1]
[1743404953315,19.11088136,1807.2,1807.1,0.1]
[1743404954117,19.94158136,1807.2,1807.1,0.1]
[1743404954638,19.94158136,1807.2,1806.6,0.8214]
[1743404954639,3.0,1807.1,1806.6,0.8214]
[1743404954797,5.53574,1806.5,1806.3,0.8214]
[1743404955006,8.53587,1806.4,1806.3,0.8214]
[1743404955204,5.53617,1806.3,1806.2,5.566]
[1743404955439,5.53617,1806.3,1806.1,0.1]
[1743404955440,8.53648,1806.2,1806.1,0.1]
[1743404955630,8.53648,1806.2,1805.4,0.8214]
[1743404955631,5.53863,1805.5,1805.4,0.8214]
[1743404955825,13.06609136,1805.5,1805.4,0.8214]
[1743404956101,5.53955,1805.2,1805.1,0.08329189]
[1743404956302,10.06701136,1805.2,1805.1,0.08329189]
[1743404956543,4.52746136,1805.2,1805.1,0.08329189]
[1743404956852,4.52746136,1805.3,1805.1,5.62314189]
[1743404957153,13.06701136,1805.2,1805.1,0.08329189]
[1743404957446,7.52746136,1805.2,1805.1,0.08329189]
[1743404957617,3.0,1805.2,1805.1,0.08329189]
[1743404958117,8.53955,1805.2,1805.1,0.08329189]
[1743404958312,3.0,1805.2,1805.1,0.08329189]
[1743404958813,3.0,1805.2,1805.1,5.73129189]
[1743404959017,5.18258211,1805.6,1805.2,5.53929]
[1743404959346,5.53836,1805.6,1805.3,0.8214]
[1743404959635,5.53836,1805.6,1805.1,11.27110189]
[1743404959636,10.72094211,1805.6,1805.4,14.5]
[1743404959841,3.0,1805.7,1805.5,5.654]
[1743404960211,5.5368,1806.1,1805.5,5.654]
[1743404960212,5.53666,1806.2,1805.7,5.53778]
[1743404960437,5.53691,1806.1,1805.6,6.3597]
[1743404960644,5.53751,1805.9,1805.7,5.676]
[1743404960809,5.53771,1805.8,1805.7,5.676]
[1743404961011,5.53711,1806.0,1805.7,5.676]
[1743404961209,11.58708,1806.1,1805.7,11.214]
[1743404961430,11.58681,1806.1,1805.7,11.21384]
[1743404961633,3.0,1806.0,1805.7,16.75165]
[1743404961950,3.0,1806.0,1805.6,0.8214]
[1743404962239,3.0,1806.0,1805.1,0.08329189]
[1743404962240,8.53863,1805.5,1805.3,0.8214]
[1743404962458,5.53893,1805.4,1805.3,5.706]
[1743404962760,6.946686,1805.4,1805.3,5.706]
[1743404963326,6.05,1805.6,1805.3,5.706]
[1743404963556,8.53893,1805.4,1805.3,5.706]
[1743404963751,3.0,1805.4,1805.3,5.706]
[1743404964055,3.0,1805.4,1805.3,6.5274]
[1743404964267,3.0,1805.4,1805.3,12.06664]
[1743404964424,6.05,1805.6,1805.3,17.60573]
[1743404964621,3.0,1805.5,1805.4,5.53893]
[1743404964821,3.0,1805.8,1805.4,5.53893]
[1743404965038,5.53741,1805.9,1805.4,5.53874]
[1743404965265,5.53775,1805.8,1805.5,5.5385]
[1743404965448,5.53775,1805.8,1805.4,5.53883]
[1743404965636,5.53804,1805.7,1805.4,5.53893]
[1743404966023,3.0,1805.7,1805.4,5.53893]
[1743404966260,3.0,1805.7,1805.5,5.53849]
[1743404966426,3.0,1805.7,1805.4,11.07756]
[1743404966775,3.0,1805.7,1805.4,5.53875]
[1743404967068,3.0,1805.8,1805.5,5.53852]
[1743404967229,5.53817,1805.7,1805.3,12.06664]
[1743404967429,5.53817,1805.7,1805.3,12.06648]
[1743404967625,5.53817,1805.7,1805.3,17.60555]
[1743404967867,5.53817,1805.7,1805.3,12.06647]
[1743404968046,5.53874,1805.5,1805.4,5.761]
[1743404968250,5.53833,1805.6,1805.4,5.761]
[1743404968864,6.945651,1805.7,1805.4,5.761]
[1743404969047,3.0,1805.6,1805.4,5.761]
[1743404969431,8.53836,1805.6,1805.4,5.761]
[1743404970268,4.0708751,1805.6,1805.4,5.761]
[1743404970479,5.53863,1805.5,1805.4,5.761]
[1743404970637,5.53863,1805.5,1805.1,6.43824189]
[1743404970638,5.53918,1805.4,1805.1,0.89839189]